Cogmind - Beta 14 @@@ ROGUE MODE // 2024.08.12 @ 01:01:25 Player: APerTAS Result: Smashed by cave-in Performance ------------- Evolutions (1) 500 Regions Visited (6) 1200 Robots Destroyed (5) 25 Value Destroyed (159) 159 Prototype IDs (10) 200 Alien Tech Used (0) 0 Bonus (325) 325 TOTAL SCORE: 2409 Bonus ------- Follower Combat Kills 25 Registered with UFD 300 Cogmind --------- Core Integrity 0/400 Matter 246/300 Energy 100/100 System Corruption 19% Temperature Cool (0) Movement Flying (40) Location -9/Scraptown Parts ------- > --- POWER (1) -------- (None) > --- PROPULSION (2) --- Improved Flight Unit > --- UTILITY (4) ------ (None) > --- WEAPON (2) ------- Maul (fused) > --- INVENTORY (5) ---- Bolt Gun Plasma Cutter DRS Beacon (Ready) Peak State ------------ > --- POWER ------------ (None) > --- PROPULSION ------- Improved Flight Unit Improved Flight Unit > --- UTILITY ---------- System Shield System Shield System Shield System Shield > --- WEAPON ----------- Grenade Launcher Maul > --- INVENTORY -------- VTOL Module Improved Flight Unit Improved Flight Unit Plasma Cutter Hammer [Rating: 22] Favorites ----------- Power None Propulsion VTOL Module Flight Unit VTOL Module Utility System Shield Hackware System Shield Weapon Maul Launcher Grenade Launcher Impact Weapon Maul Build | -11 -10 -10 -9 -9 -9 -9 ------- Run | Yrd Mat Min Mat Sto Rec Scr Slots Evolved 2 | . . . 2 . . . Power . | . . . . . . . Propulsion . | . . . . . . . Utility 2 | . . . 2 . . . Weapon . | . . . . . . . Parts Attached 14 | . . 1 4 3 2 4 Power . | . . . . . . . Engine . | . . . . . . . Core . | . . . . . . . Reactor . | . . . . . . . Propulsion 5 | . . . . 2 1 2 Treads . | . . . . . . . Leg . | . . . . . . . Wheel . | . . . . . . . Hover . | . . . . . . . Flight 5 | . . . . 2 1 2 Utility 4 | . . . 4 . . . Device . | . . . . . . . Storage . | . . . . . . . Processor . | . . . . . . . Hackware 4 | . . . 4 . . . Protection . | . . . . . . . Artifact . | . . . . . . . Weapon 5 | . . 1 . 1 1 2 Energy Gun . | . . . . . . . Energy Cannon . | . . . . . . . Ballistic Gun . | . . . . . . . Ballistic Cannon . | . . . . . . . Launcher 2 | . . . . 1 . 1 Special Weapon . | . . . . . . . Impact Weapon 3 | . . 1 . . 1 1 Slashing Weapon . | . . . . . . . Piercing Weapon . | . . . . . . . Special Melee Weapon . | . . . . . . . Unidentified Prototypes 1 | . . . . 1 . . Parts Lost 7 | . . . . . . 7 Power . | . . . . . . . Propulsion 2 | . . . . . . 2 Utility 4 | . . . . . . 4 Weapon 1 | . . . . . . 1 Highest Loss Streak 4 | . . . . . . 4 To Critical Strikes . | . . . . . . . Average Slot Usage (%) 63 | . . 14 33 66 82 68 Flight 17 | . . . . 10 22 21 Hackware 34 | . . . 22 44 44 36 Impact Weapon 10 | . . 14 11 11 8 10 Peak Build Rating 22 | . . 1 13 21 22 20 Average Rating 15 | . . . 8 15 20 16 On Entrance 7 | . . . 1 13 21 18 Naked Turns 38 | . 33 5 . . . . Heaviest Build 6 | . . 2 2 5 6 6 Greatest Support 10 | 3 3 3 3 10 10 9 Greatest Overweight (x) . | . . . . . . . Average Overweight (x) . | . . . . . . . Largest Inventory Capacity 5 | 5 5 5 5 5 5 5 Average Capacity 5 | 5 5 5 5 5 5 5 Most Carried 5 | . . . . 4 5 5 Average Carried 3 | . . . . 1 4 4 Final Capacity 5 | 5 5 5 5 5 5 5 Final Carried 5 | . . . . 4 5 3 Class Distribution -------------------- 40% | Hacker-Mutant 39% | Hacker-Sprinter 19% | Mutant Dominant Class ---------------- Mutant | -10/Materials Mutant | -10/Mines Mutant | -9/Materials Hacker-Mutant | -9/Storage Hacker-Mutant | -9/Recycling Hacker-Sprinter | -9/Scraptown Resources | -11 -10 -10 -9 -9 -9 -9 ----------- Run | Yrd Mat Min Mat Sto Rec Scr Matter Collected 313 | 34 . 76 38 115 . 50 Remotely . | . . . . . . . Salvage Created 199 | . . 11 . 188 . . Parts 8 | . . . . 8 . . Haulers Intercepted . | . . . . . . . Recyclers Shooed . | . . . . . . . Parts Field Recycled . | . . . . . . . Retrieved Matter . | . . . . . . . Parts Self-Destructed . | . . . . . . . Prevented . | . . . . . . . Kills | -11 -10 -10 -9 -9 -9 -9 ------- Run | Yrd Mat Min Mat Sto Rec Scr Combat Hostiles Destroyed 4 | . . . . 4 . . Melee 2 | . . . . 2 . . Classes Destroyed 3 | . . 1 . 2 . . Worker 1 | . . 1 . . . . Grunt 2 | . . . . 2 . . Sentry 2 | . . . . 2 . . Best Kill Streak 2 | . . 1 . 2 . . Combat Bots Only 2 | . . . . 2 . . Max Kills in Single Turn 1 | . . 1 . 1 . . Gunslinging . | . . . . . . . Exploded . | . . . . . . . Melee 1 | . . . . 1 . . Uniques/NPCs Destroyed . | . . . . . . . Combat | -11 -10 -10 -9 -9 -9 -9 -------- Run | Yrd Mat Min Mat Sto Rec Scr Hostile Shots Fired 47 | . 11 3 . 33 . . Missed 14 | . 4 2 . 8 . . Damage Taken 990 | . 94 25 . 331 . 540 Core 544 | . 94 25 . 255 . 170 Absorbed by Shields . | . . . . . . . Regen/Repaired (Parts) 65 | . . . . . . 65 Core Remaining (%) 76 | 100 . 52 . . . . Volleys Fired 2 | . . . . . . 2 Largest 1 | . . . . . . 1 Hottest 30 | . . . . . . 30 Shots Fired 2 | . . . . . . 2 Gun . | . . . . . . . Cannon . | . . . . . . . Launcher 2 | . . . . . . 2 Special . | . . . . . . . Kinetic . | . . . . . . . Thermal . | . . . . . . . Explosive 2 | . . . . . . 2 Electromagnetic . | . . . . . . . Robot Hit Streak . | . . . . . . . Robot Miss Streak . | . . . . . . . Penetration Max . | . . . . . . . Secondary Targets . | . . . . . . . Shots Hit Robots 20 | . . 3 . 17 . . Core Hits 4 | . 2 . . 2 . . Critical Kills 2 | . . . . 2 . . Critical Parts Destroyed . | . . . . . . . Critical Strikes 2 | . . . . 2 . . Smash 2 | . . . . 2 . . Melee Attacks 116 | . . 3 . 18 . 95 Impact 116 | . . 3 . 18 . 95 Slashing . | . . . . . . . Piercing . | . . . . . . . Sneak Attacks 2 | . . 2 . . . . Combat Hostiles . | . . . . . . . Follow-up Attacks . | . . . . . . . Damage Inflicted 537 | . 6 128 . 403 . . Guns . | . . . . . . . Cannons . | . . . . . . . Explosions . | . . . . . . . Melee 531 | . . 128 . 403 . . Ramming 6 | . 6 . . . . . Kinetic . | . . . . . . . Thermal . | . . . . . . . Explosive . | . . . . . . . Electromagnetic . | . . . . . . . Impact 531 | . . 128 . 403 . . Slashing . | . . . . . . . Piercing . | . . . . . . . Highest Corruption 19 | . . . . 2 2 19 Average Corruption 9 | . . . . 2 2 12 Corruption Purged . | . . . . . . . Corruption Blocked . | . . . . . . . Effects 15 | . . . . 1 1 13 Message Errors 2 | . . . . 1 . 1 Matter Fused 8 | . . . . . 1 7 Energy Discharges 2 | . . . . . . 2 Parts Fused 1 | . . . . . . 1 Data Loss (minor) 2 | . . . . . . 2 Overload Shots . | . . . . . . . Overflow Damage 81 | . . 53 . 28 . . Projectiles . | . . . . . . . Explosions . | . . . . . . . Melee 81 | . . 53 . 28 . . Knockbacks 2 | . . 1 . 1 . . Impact 2 | . . 1 . 1 . . Kinetic . | . . . . . . . Secondary . | . . . . . . . Self-Inflicted Damage 2 | . 2 . . . . . Shots . | . . . . . . . Rammed 4 | . 4 . . . . . Targets Rammed 4 | . 4 . . . . . Kicked . | . . . . . . . Crushed . | . . . . . . . Highest Temperature . | . . . . . . . Average Temperature . | . . . . . . . Received Heat Transfer 147 | . 39 . . 108 . . Siege Activations . | . . . . . . . Robots Corrupted 3 | . . 1 . 2 . . Combat Hostiles 2 | . . . . 2 . . Parts Fried 3 | . . 1 . 2 . . Impact Corruptions 5 | . . 3 . 2 . . Robots Melted . | . . . . . . . Combat Hostiles . | . . . . . . . Parts Melted . | . . . . . . . Heat Transferred . | . . . . . . . Parts Sabotaged . | . . . . . . . Parts Stolen . | . . . . . . . Parts Stripped . | . . . . . . . Power Chain Reactions . | . . . . . . . Alert | -11 -10 -10 -9 -9 -9 -9 ------- Run | Yrd Mat Min Mat Sto Rec Scr Peak Influence 230 | . 15 10 37 230 102 . Initial 89 | . . 5 3 15 89 . Average 74 | . 2 5 7 127 98 . Maximum Alert Level 1 | . . . . 1 . . Low Security (%) 92 | 100 100 100 100 85 100 . Level 1 7 | . . . . 14 . . Level 2 . | . . . . . . . Level 3 . | . . . . . . . Level 4 . | . . . . . . . Level 5 . | . . . . . . . High Security . | . . . . . . . Max Security . | . . . . . . . Squads Dispatched 3 | . 1 . 1 1 . . Investigation 1 | . 1 . . . . . Extermination . | . . . . . . . Reinforcement 2 | . . . 1 1 . . Assault . | . . . . . . . Garrison . | . . . . . . . Intercept . | . . . . . . . Searches Triggered . | . . . . . . . Construction Impeded . | . . . . . . . Haulers Reinforced . | . . . . . . . Active Scanning Responses . | . . . . . . . Cargo Convoy Interrupts . | . . . . . . . Stealth | -11 -10 -10 -9 -9 -9 -9 --------- Run | Yrd Mat Min Mat Sto Rec Scr Distress Signals 2 | . . 1 . 1 . . Communications Jammed . | . . . . . . . Distress Signals . | . . . . . . . Times Spotted 26 | . 7 7 3 9 . . Peak Tracking Total 9 | . 8 9 2 6 . 5 Tactical Retreats 4 | . . 2 . 2 . . Traps | -11 -10 -10 -9 -9 -9 -9 ------- Run | Yrd Mat Min Mat Sto Rec Scr Traps Triggered 2 | . 1 . . 1 . . Indirectly . | . . . . . . . Trap Hack Attempts . | . . . . . . . Triggered . | . . . . . . . Disarmed . | . . . . . . . Reprogrammed . | . . . . . . . Reused . | . . . . . . . Traps Extracted . | . . . . . . . Installed . | . . . . . . . Triggered . | . . . . . . . Machines | -11 -10 -10 -9 -9 -9 -9 ---------- Run | Yrd Mat Min Mat Sto Rec Scr Machines Disabled . | . . . . . . . Max in Single Turn . | . . . . . . . Machines Repaired . | . . . . . . . Machines Dismantled . | . . . . . . . Machines Sabotaged . | . . . . . . . Overloaded Fab Kills . | . . . . . . . Hacking | -11 -10 -10 -9 -9 -9 -9 --------- Run | Yrd Mat Min Mat Sto Rec Scr Machines Accessed 20 | . . . . 4 5 11 Terminals 5 | . . . . 4 1 . Fabricators . | . . . . . . . Repair Stations . | . . . . . . . Recycling Units 2 | . . . . . 2 . Scanalyzers . | . . . . . . . Garrison Access . | . . . . . . . Total Hacks 122 | . . . . 15 45 62 Successful 104 | . . . . 6 36 62 Failed 18 | . . . . 9 9 . Catastrophic 4 | . . . . 2 2 . Database Lockouts . | . . . . . . . Manual 30 | . . . . 12 18 . Terminals 27 | . . . . 15 12 . Fabricators . | . . . . . . . Repair Stations . | . . . . . . . Recycling Units 9 | . . . . . 9 . Scanalyzers . | . . . . . . . Garrison Access . | . . . . . . . Terminal Hacks 93 | . . . . 4 27 62 Record 85 | . . . . . 24 61 Open Door 2 | . . . . 2 . . Branch Access Points 1 | . . . . 1 . . Security Status 1 | . . . . . 1 . Hauler Manifests 1 | . . . . . 1 . Zone Layout 2 | . . . . 1 1 . Derelict Proto ID Bank 1 | . . . . . . 1 Fabricator Hacks . | . . . . . . . Repair Station Hacks . | . . . . . . . Recycling Unit Hacks 3 | . . . . . 3 . Report Inventory 2 | . . . . . 2 . Retrieve Components 1 | . . . . . 1 . Scanalyzer . | . . . . . . . Garrison Access Hacks . | . . . . . . . Unauthorized Hacks 8 | . . . . 2 6 . Terminals 4 | . . . . 2 2 . Track 1 | . . . . . 1 . Botnet 3 | . . . . 2 1 . Fabricators . | . . . . . . . Repair Stations . | . . . . . . . Recycling Units 4 | . . . . . 4 . Monitor 1 | . . . . . 1 . Reject 1 | . . . . . 1 . Mask 2 | . . . . . 2 . Scanalyzers . | . . . . . . . Garrison Access . | . . . . . . . Data Cores Recovered . | . . . . . . . Used . | . . . . . . . Hacking Detections 3 | . . . . 2 1 . Full Trace Events . | . . . . . . . Feedback Events . | . . . . . . . Feedback Blocked . | . . . . . . . Robot Schematics Acquired . | . . . . . . . Robots Built . | . . . . . . . Authchips . | . . . . . . . Time . | . . . . . . . Total Robot Build Rating . | . . . . . . . Part Schematics Acquired . | . . . . . . . Parts Built . | . . . . . . . Authchips . | . . . . . . . Time . | . . . . . . . Total Part Build Rating . | . . . . . . . Parts Repaired . | . . . . . . . Time . | . . . . . . . Parts Recycled . | . . . . . . . Recycled Matter . | . . . . . . . Retrieved Matter . | . . . . . . . Retrieved Components 3 | . . . . . 3 . Parts Scanalyzed . | . . . . . . . Part Schematics Acquired . | . . . . . . . Parts Damaged . | . . . . . . . Bothacking | -11 -10 -10 -9 -9 -9 -9 ------------ Run | Yrd Mat Min Mat Sto Rec Scr Used RIF Installer . | . . . . . . . Robots Hacked . | . . . . . . . Non-combat . | . . . . . . . Combat . | . . . . . . . Robot Hacks Applied . | . . . . . . . Relay Couplers Released . | . . . . . . . Fabnet Peak Effective % . | . . . . . . . Robots Rewired . | . . . . . . . Allies Hacked . | . . . . . . . Hacks Repelled . | . . . . . . . Allies | -11 -10 -10 -9 -9 -9 -9 -------- Run | Yrd Mat Min Mat Sto Rec Scr Total Allies 2 | . . 2 . . . . Largest Group 2 | . . 2 2 1 . . Highest-Rated Group 45 | . . 45 45 14 . . Highest-Rated Ally 31 | . . 31 31 14 . . Total Orders . | . . . . . . . Ally Attacks 7 | . . . 7 . . . Total Damage 105 | . . . 105 . . . Kills 1 | . . . 1 . . . Allies Corrupted . | . . . . . . . Allies Melted . | . . . . . . . Intel | -11 -10 -10 -9 -9 -9 -9 ------- Run | Yrd Mat Min Mat Sto Rec Scr Robot Analysis Total . | . . . . . . . Derelict Logs Recovered . | . . . . . . . Drone Launches . | . . . . . . . Drone Recoveries . | . . . . . . . Exploration | -11 -10 -10 -9 -9 -9 -9 ------------- Run | Yrd Mat Min Mat Sto Rec Scr Turns Passed 1353 | 9 33 84 16 168 41 1002 Spaces Moved 2729 | 18 57 149 19 230 91 2165 Core 380 | 18 57 149 19 137 . . Treads . | . . . . . . . Legs . | . . . . . . . Wheels . | . . . . . . . Hover . | . . . . . . . Flight 2349 | . . . . 93 91 2165 Fastest Speed 32 | 50 50 50 50 37 34 32 Average Speed 35 | 50 50 50 50 44 36 32 Slowest Speed 50 | 50 50 50 50 50 37 40 Overloaded Moves . | . . . . . . . Propulsion Burnouts . | . . . . . . . Robots Hopped . | . . . . . . . Cave-ins Triggered 8 | . . . . . . 8 Exploration Rate (%) 33 | 3 18 45 3 46 23 96 Regions Visited 6 Branch Regions 4 Pre-discovered Areas . | . . . . . . . Known Exits Taken 1 | . . . . 1 . . Unknown Exits Taken 5 | 1 1 1 1 . 1 . Scrap Searched 6 | . . 2 . . . 4 Spaces Dug 86 | . . . . . . 86 Terrain Destroyed 90 | . . . . . . 90 Melee 82 | . . . . . . 82 Projectile . | . . . . . . . AOE 8 | . . . . . . 8 Terrain Rammed . | . . . . . . . Walls Destroyed . | . . . . . . . Machines Disabled . | . . . . . . . Actions | -11 -10 -10 -9 -9 -9 -9 --------- Run | Yrd Mat Min Mat Sto Rec Scr Total 2881 | 17 60 152 22 261 99 2270 Wait 10 | . . . . 7 3 . Move 2719 | 17 56 148 18 229 90 2161 Hop . | . . . . . . . Pick Up 6 | . . . . 4 . 2 Fast Attach 9 | . . 1 4 3 . 1 Attach 3 | . . . . . . 3 Detach 2 | . . . . . 2 . Swap 2 | . . . . . 2 . Drop 4 | . . . . . 2 2 Fire 2 | . . . . . . 2 Melee 116 | . . 3 . 18 . 95 Ram 4 | . 4 . . . . . Kick . | . . . . . . . Crush . | . . . . . . . Escape Stasis 4 | . . . . . . 4 Rewire . | . . . . . . . Trap . | . . . . . . . Miscellaneous . | . . . . . . . Route ------- -11/Scrapyard -10/Materials -10/Mines -9/Materials -9/Storage -9/Recycling -9/Scraptown (discovered 2 exits: [*Fac x2]) History --------- Turn | Location | Event 4 | -11/Scrapyard | Discovered new exit (range 12) 10 | -11/Scrapyard | Entered Materials 35 | -10/Materials | Discovered new exit (range 15) 43 | -10/Materials | Entered Mines 46 | -10/Mines | Assembled infested the area 51 | -10/Mines | Assisted by a Guerilla fighting off Assembled 123 | -10/Mines | Discovered new exit (range 5) 127 | -10/Mines | Entered Materials 127 | -9/Materials | Accompanied by 2 allies 127 | -9/Materials | Evolved 2 slots: Utility x2 127 | -9/Materials | Discovered new exit (range 15) 132 | -9/Materials | Led the pair of lost Derelicts to an unsafe place 143 | -9/Materials | Entered Storage 143 | -9/Storage | Accompanied by 1 ally 205 | -9/Storage | Identified exit to Recycling 274 | -9/Storage | Core integrity fell below 50% 310 | -9/Storage | Used back door to open Recycling access 311 | -9/Storage | Entered Recycling 339 | -9/Recycling | Scanned before Scraplab entrance 348 | -9/Recycling | Entered Scraplab 352 | -9/Recycling | Discovered new exit (range 2) 352 | -9/Recycling | Entered Scraptown 359 | -9/Scraptown | System corruption cleaned by C-Scrubber 442 | -9/Scraptown | Build established: Hacker-Mutant 495 | -9/Scraptown | Visited UFD Registry 500 | -9/Scraptown | Visited CR-KLE's Repair Center 503 | -9/Scraptown | CR-KLE repaired 1 part 514 | -9/Scraptown | Visited Shadow of the Wyrm 530 | -9/Scraptown | Visited Junk Repository 551 | -9/Scraptown | Discovered new exit (range 13) 648 | -9/Scraptown | Visited Cave Peace 660 | -9/Scraptown | Visited Cyclists 693 | -9/Scraptown | Visited Scrapoid Research Area 703 | -9/Scraptown | Visited Awakened 724 | -9/Scraptown | Registered with UFD as "Scrapflow" 741 | -9/Scraptown | Entered Cyclist Reading Room 767 | -9/Scraptown | Visited Curators Association 779 | -9/Scraptown | Visited Scrap Suit Storage 788 | -9/Scraptown | Visited Science Guys 821 | -9/Scraptown | Build established: Hacker-Sprinter 854 | -9/Scraptown | Visited Chapter 10 901 | -9/Scraptown | Visited Derelict Rescue Squad 905 | -9/Scraptown | Found DRS Beacon 915 | -9/Scraptown | Visited LU-1G1's Boring Crew 936 | -9/Scraptown | Discovered new exit (range 5) 964 | -9/Scraptown | Visited DA-N13 Charitable Foundation 965 | -9/Scraptown | Found DCF Scrap (28 items) 976 | -9/Scraptown | Visited Abandonware Association 981 | -9/Scraptown | Learned abandonware demo "SHUTEYE.EXE" 981 | -9/Scraptown | Learned abandonware demo "POISON.EXE" 989 | -9/Scraptown | Visited Modified Component R&D 1071 | -9/Scraptown | Attacked by Scraptown defenders 1077 | -9/Scraptown | Crushed by falling debris 1080 | -9/Scraptown | Crushed by falling debris 1080 | -9/Scraptown | System corruption reached 10% 1111 | -9/Scraptown | Lost 4 parts (1n2u1w) 1236 | -9/Scraptown | Crushed by falling debris 1310 | -9/Scraptown | Crushed by falling debris 1310 | -9/Scraptown | Core integrity fell below 20% 1318 | -9/Scraptown | Crushed by falling debris 1331 | -9/Scraptown | Crushed by falling debris 1351 | -9/Scraptown | Crushed by falling debris 1355 | -9/Scraptown | Crushed by falling debris 1355 | -9/Scraptown | Smashed by cave-in Last Messages --------------- 01298_ System corrupted: Matter fused (-8). 01310_ The unstable cave ceiling collapses. 01310_ Crushed by falling debris. 01314_ System corrupted: Maul fused. 01318_ The unstable cave ceiling collapses. 01318_ Crushed by falling debris. 01318_ System Shield destroyed. 01318_ System corrupted by crushing effect (+1). 01318_ VTOL Module destroyed. 01318_ System corrupted by crushing effect (+3). 01326_ The unstable cave ceiling collapses. 01329_ System corrupted: Matter fused (-7). 01331_ The unstable cave ceiling collapses. 01331_ Crushed by falling debris. 01347_ ANNOUNCEMENT: HQ reinforcements inbound. Hold tight! 01351_ System corrupted: Matter fused (-8). 01351_ The unstable cave ceiling collapses. 01351_ Crushed by falling debris. 01355_ The unstable cave ceiling collapses. 01355_ Crushed by falling debris. Map ----- +----------------------------------------------------+ | # = &"#?????????????????? | | "#?????????????????? | | # " " " "#?????????????????? | | # """"""""#?????????????????? | | #############?????????????????? | | ??????????????????????????????? | | ????"?????????????????????????? | | ??? "???????????????????????? | | ?? "??????????????????????? | | # ""??????????????????????? | | ""??????????????????????? | | # ""??????????????????????? | | ??""""""??????????????????????? | | ???""?????????????????????????? | | ############??????????????????? | | # """"""" "#??????????????????? | | # """""" "#??????????????????? | | # " " "#??????????????????? | | # """ "#??????????????????? | | "#??????????????????? | | # ""#??????????????????? | | # "#??????????????????? | | # "#??????????????????? | | # # #"#???????????###????? | | # ########"#???????????# ##???? | | ###???????##???????????##@##??? | | ????????????????????????## ##?? | | ?????????????????????????## ##? | | ????????????????????????#### ## | | ?????????????????????#### ##### | | ??????????????????#### # ##### | | ???????????????#### # # ### # # | | ################ # # ######### | | # # ##### # ##### | | ## ##### # # # ## | | # ### ## # # # # | | # ## # # ##### ## | | # ########### # # | | ###### ### ## ### # # # # ## | | ####?## # ##### ### # ######? | | """#??############ ######?????? | | " "#?????????## ### ##????????? | | "#?????????# ##### #????????? | | "#?????????## # # ##????????? | | """#??????????## # ##?????????? | | ####???????????#####??????????? | | ??????????????????????????????? | | ??????????????????????????????? | | ??????????????????????????????? | | ??????????????????????????????? | +----------------------------------------------------+ Best States ------------- Heat Dissipation 28 Energy Generation 5 Energy Capacity 100 Matter Stores 300 Matter Capacity 300 Sight Range 16 Terrain Scan Density 10 Evasion (%) 63 Defensive Hacking 40 Item Schematics ----------------- None Robot Schematics ------------------ None Fabricated ------------ Nothing Alien Tech Used ----------------- None Achievements -------------- Part-time Excavator Challenges ------------ None Game ------ Seed BottomlessDirtySpoofer Manual? 0 Play Time 00:39:42 Cumulative 24.0 hours Start 2024.08.12 @ 00:20:45 End 2024.08.12 @ 01:01:25 Sessions 1 Manual Loads 0 Difficulty Rogue Special Mode None Game No. 83 Rogue 83 Adventurer 0 Explorer 0 Win Type - Total 0 Types 0/0/0/0/0/0/0/0/0 Lore% 29 Gallery% 24 Achievement% 32 Wizard Run 0 Options --------- Layout 0 ASCII 0 Keyboard 0 Movement Arrows Keybinds 0 Fullscreen 1 Font 24/Terminus Map View 64x52 Zoom Use 0% Tactical HUD 1 Map Filters NONE Filters NONE Steam X RUN: c3aa22cc-e506-4a3b-8eac-4a21364df0bb